Cogmind - Beta 13 @@@ ROGUE MODE // 2024.04.10 @ 23:10:39 Player: Evilsquid Result: Destroyed by FS-JUD(R) with Subdweller Machine Gun Performance ------------- Evolutions (0) 0 Regions Visited (2) 400 Robots Destroyed (18) 90 Value Destroyed (372) 372 Prototype IDs (0) 0 Alien Tech Used (0) 0 Bonus (0) 0 TOTAL SCORE: 862 Bonus ------- None Cogmind --------- Core Integrity 0/250 Matter 214/300 Energy 109/125 System Corruption 0% Temperature Cool (0) Movement Treading (340) Ox2 Location -10/Subcaves Parts ------- > --- POWER (1) -------- Light Ion Engine > --- PROPULSION (2) --- Light Treads Spiked Treads > --- UTILITY (2) ------ Improved Heat Sink Huge Storage Unit > --- WEAPON (2) ------- Small Laser Small Laser > --- INVENTORY (25) --- Ion Engine Light Ion Engine Light Treads Aluminum Leg Large Storage Unit Medium Matter Pod (0) Medium Matter Pod (0) Medium Matter Pod (0) Medium Matter Pod (0) High-capacity Matter Pod (200) High-capacity Matter Pod (0) Structural Scanner Sensor Array Signal Interpreter Improved Terrain Scanner Power Shielding Weapon Shielding Light Assault Rifle Datajack Hammer Hammer Peak State ------------ > --- POWER ------------ Ion Engine > --- PROPULSION ------- Light Treads Spiked Treads > --- UTILITY ---------- Improved Heat Sink Huge Storage Unit > --- WEAPON ----------- Light Assault Rifle Light Assault Rifle > --- INVENTORY -------- Ion Engine Light Ion Engine Light Ion Engine Light Treads Aluminum Leg Large Storage Unit Medium Matter Pod Medium Matter Pod Medium Matter Pod Medium Matter Pod High-capacity Matter Pod High-capacity Matter Pod Structural Scanner Sensor Array Signal Interpreter Improved Terrain Scanner Power Shielding Weapon Shielding Small Laser Small Laser Light Assault Rifle Datajack Hammer Hammer [Rating: 12] Favorites ----------- Power Ion Engine Engine Ion Engine Propulsion Light Treads Treads Light Treads Leg Aluminum Leg Utility Improved Heat Sink Device Improved Heat Sink Storage Huge Storage Unit Weapon Light Assault Rifle Energy Gun Small Laser Ballistic Gun Light Assault Rifle Build | -11 -10 -10 ------- Run | Yrd Mat Sub Slots Evolved . | . . . Power . | . . . Propulsion . | . . . Utility . | . . . Weapon . | . . . Parts Attached 25 | 7 11 7 Power 4 | 1 1 2 Engine 4 | 1 1 2 Core . | . . . Reactor . | . . . Propulsion 7 | 2 4 1 Treads 5 | 2 2 1 Leg 2 | . 2 . Wheel . | . . . Hover . | . . . Flight . | . . . Utility 6 | 2 4 . Device 4 | 1 3 . Storage 2 | 1 1 . Processor . | . . . Hackware . | . . . Protection . | . . . Artifact . | . . . Weapon 8 | 2 2 4 Energy Gun 3 | 1 . 2 Energy Cannon . | . . . Ballistic Gun 5 | 1 2 2 Ballistic Cannon . | . . . Launcher . | . . . Special Weapon . | . . . Impact Weapon . | . . . Slashing Weapon . | . . . Piercing Weapon . | . . . Special Melee Weapon . | . . . Unidentified Prototypes . | . . . Parts Lost 7 | . 4 3 Power 2 | . 1 1 Propulsion 2 | . 2 . Utility 1 | . 1 . Weapon 2 | . . 2 Highest Loss Streak 3 | . 2 3 To Critical Strikes . | . . . Average Slot Usage (%) 98 | . 98 100 Engine 13 | . 13 14 Treads 22 | . 21 28 Leg 5 | . 5 . Device 13 | . 13 14 Storage 14 | . 14 14 Ballistic Gun 27 | . 27 26 Naked Turns . | . . . Heaviest Build 88 | 13 88 88 Greatest Support 40 | 40 40 40 Greatest Overweight (x) 4 | . 4 2 Average Overweight (x) 1 | . 1 2 Largest Inventory Capacity 25 | 8 25 25 Average Capacity 18 | 7 18 25 Most Carried 24 | 3 23 24 Average Carried 10 | 1 10 22 Final Capacity 25 | 8 25 25 Final Carried 23 | 3 23 21 Class Distribution -------------------- 61% | Scavenger-Mutant 38% | Mutant Dominant Class ---------------- Scavenger-Mutant | -10/Materials Scavenger-Mutant | -10/Subcaves Resources | -11 -10 -10 ----------- Run | Yrd Mat Sub Matter Collected 701 | 284 417 . Remotely . | . . . Salvage Created 574 | 87 441 46 Parts 37 | 6 28 3 Haulers Intercepted 2 | . 2 . Recyclers Shooed 1 | . 1 . Parts Field Recycled . | . . . Retrieved Matter . | . . . Parts Self-Destructed 5 | . . 5 Prevented . | . . . Kills | -11 -10 -10 ------- Run | Yrd Mat Sub Combat Hostiles Destroyed 10 | . 9 1 Guns 10 | . 9 1 Classes Destroyed 7 | 2 4 1 Tunneler 2 | 2 . . Hauler 2 | . 2 . Recycler 1 | 1 . . Watcher 3 | . 3 . Swarmer 3 | . 3 . Grunt 6 | . 6 . Subdweller 1 | . . 1 Best Kill Streak 3 | 1 3 1 Combat Bots Only 3 | . 3 1 Max Kills in Single Turn 1 | 1 1 1 Gunslinging . | . . . Exploded . | . . . Melee . | . . . Uniques/NPCs Destroyed . | . . . Combat | -11 -10 -10 -------- Run | Yrd Mat Sub Hostile Shots Fired 107 | . 78 29 Missed 27 | . 22 5 Damage Taken 1156 | . 660 496 Core 261 | . 142 119 Absorbed by Shields . | . . . Core Remaining (%) 100 | 100 . . Volleys Fired 102 | 14 76 12 Largest 2 | 2 2 2 Hottest 80 | 60 60 80 Shots Fired 204 | 28 152 24 Gun 204 | 28 152 24 Cannon . | . . . Launcher . | . . . Special . | . . . Kinetic 178 | 14 144 20 Thermal 26 | 14 8 4 Explosive . | . . . Electromagnetic . | . . . Robot Hit Streak 11 | 5 7 11 Robot Miss Streak 5 | 2 5 1 Penetration Max . | . . . Secondary Targets 1 | . 1 . Max Gunslinging Chain 1 | . 1 . Shots Hit Robots 131 | 16 94 21 Core Hits 47 | 5 36 6 Critical Kills . | . . . Critical Parts Destroyed . | . . . Critical Strikes . | . . . Melee Attacks . | . . . Impact . | . . . Slashing . | . . . Piercing . | . . . Sneak Attacks . | . . . Combat Hostiles . | . . . Follow-up Attacks . | . . . Damage Inflicted 1126 | 150 795 181 Guns 1117 | 150 786 181 Cannons . | . . . Explosions . | . . . Melee . | . . . Ramming 9 | . 9 . Kinetic 958 | 71 740 147 Thermal 159 | 79 46 34 Explosive . | . . . Electromagnetic . | . . . Impact . | . . . Slashing . | . . . Piercing . | . . . Highest Corruption . | . . . Average Corruption . | . . . Corruption Purged . | . . . Corruption Blocked . | . . . Overload Shots . | . . . Overflow Damage . | . . . Projectiles . | . . . Explosions . | . . . Melee . | . . . Knockbacks . | . . . Impact . | . . . Kinetic . | . . . Secondary . | . . . Self-Inflicted Damage . | . . . Shots . | . . . Rammed 3 | . 3 . Targets Rammed 3 | . 3 . Kicked . | . . . Crushed . | . . . Highest Temperature 60 | 40 60 . Average Temperature 19 | 19 19 . Received Heat Transfer 375 | . 309 66 Siege Activations . | . . . Robots Corrupted . | . . . Combat Hostiles . | . . . Parts Fried . | . . . Impact Corruptions . | . . . Robots Melted . | . . . Combat Hostiles . | . . . Parts Melted 1 | . . 1 Heat Transferred 350 | 175 100 75 Parts Sabotaged . | . . . Parts Stolen . | . . . Parts Stripped . | . . . Power Chain Reactions . | . . . Alert | -11 -10 -10 ------- Run | Yrd Mat Sub Peak Influence 147 | 15 147 . Initial 9 | . 9 . Average 24 | 6 26 . Maximum Alert Level . | . . . Low Security (%) 100 | 100 100 . Level 1 . | . . . Level 2 . | . . . Level 3 . | . . . Level 4 . | . . . Level 5 . | . . . High Security . | . . . Max Security . | . . . Squads Dispatched 1 | . 1 . Investigation . | . . . Extermination . | . . . Reinforcement 1 | . 1 . Assault . | . . . Garrison . | . . . Intercept . | . . . Searches Triggered . | . . . Construction Impeded . | . . . Haulers Reinforced . | . . . Active Scanning Responses . | . . . Cargo Convoy Interrupts . | . . . Stealth | -11 -10 -10 --------- Run | Yrd Mat Sub Distress Signals . | . . . Communications Jammed . | . . . Distress Signals . | . . . Times Spotted 22 | . 19 3 Peak Tracking Total 3 | . 3 3 Tactical Retreats 1 | . 1 . Traps | -11 -10 -10 ------- Run | Yrd Mat Sub Traps Triggered . | . . . Indirectly . | . . . Trap Hack Attempts . | . . . Triggered . | . . . Disarmed . | . . . Reprogrammed . | . . . Reused . | . . . Traps Extracted . | . . . Installed . | . . . Triggered . | . . . Machines | -11 -10 -10 ---------- Run | Yrd Mat Sub Machines Disabled . | . . . Max in Single Turn . | . . . Machines Repaired . | . . . Machines Dismantled . | . . . Machines Sabotaged . | . . . Overloaded Fab Kills . | . . . Hacking | -11 -10 -10 --------- Run | Yrd Mat Sub Machines Accessed 5 | . 5 . Terminals 5 | . 5 . Fabricators . | . . . Repair Stations . | . . . Recycling Units . | . . . Scanalyzers . | . . . Garrison Access . | . . . Total Hacks 10 | . 10 . Successful 6 | . 6 . Failed 4 | . 4 . Catastrophic . | . . . Database Lockouts . | . . . Manual 6 | . 6 . Terminals 10 | . 10 . Fabricators . | . . . Repair Stations . | . . . Recycling Units . | . . . Scanalyzers . | . . . Garrison Access . | . . . Terminal Hacks 2 | . 2 . Alert Level 1 | . 1 . Registered Components 1 | . 1 . Fabricator Hacks . | . . . Repair Station Hacks . | . . . Recycling Unit Hacks . | . . . Scanalyzer . | . . . Garrison Access Hacks . | . . . Unauthorized Hacks 4 | . 4 . Terminals 4 | . 4 . Botnet 4 | . 4 . Fabricators . | . . . Repair Stations . | . . . Recycling Units . | . . . Scanalyzers . | . . . Garrison Access . | . . . Data Cores Recovered . | . . . Used . | . . . Hacking Detections 3 | . 3 . Full Trace Events 3 | . 3 . Feedback Events . | . . . Feedback Blocked . | . . . Robot Schematics Acquired . | . . . Robots Built . | . . . Authchips . | . . . Time . | . . . Total Robot Build Rating . | . . . Part Schematics Acquired . | . . . Parts Built . | . . . Authchips . | . . . Time . | . . . Total Part Build Rating . | . . . Parts Repaired . | . . . Time . | . . . Parts Recycled . | . . . Recycled Matter . | . . . Retrieved Matter . | . . . Retrieved Components . | . . . Parts Scanalyzed . | . . . Part Schematics Acquired . | . . . Parts Damaged . | . . . Bothacking | -11 -10 -10 ------------ Run | Yrd Mat Sub Used RIF Installer . | . . . Robots Hacked . | . . . Non-combat . | . . . Combat . | . . . Robot Hacks Applied . | . . . Relay Couplers Released . | . . . Fabnet Peak Effective % . | . . . Robots Rewired . | . . . Allies Hacked . | . . . Hacks Repelled . | . . . Allies | -11 -10 -10 -------- Run | Yrd Mat Sub Total Allies . | . . . Largest Group . | . . . Highest-Rated Group . | . . . Highest-Rated Ally . | . . . Total Orders . | . . . Ally Attacks . | . . . Total Damage . | . . . Kills . | . . . Allies Corrupted . | . . . Allies Melted . | . . . Intel | -11 -10 -10 ------- Run | Yrd Mat Sub Robot Analysis Total . | . . . Derelict Logs Recovered . | . . . Drone Launches . | . . . Drone Recoveries . | . . . Exploration | -11 -10 -10 ------------- Run | Yrd Mat Sub Turns Passed 2658 | 230 2250 178 Spaces Moved 886 | 114 734 38 Core 17 | 5 12 . Treads 859 | 109 712 38 Legs 10 | . 10 . Wheels . | . . . Hover . | . . . Flight . | . . . Fastest Speed 50 | 50 120 320 Average Speed 258 | 155 271 325 Slowest Speed 480 | 160 480 340 Overloaded Moves . | . . . Propulsion Burnouts . | . . . Robots Hopped . | . . . Cave-ins Triggered . | . . . Exploration Rate (%) 37 | 6 99 6 Regions Visited 2 Branch Regions 1 Pre-discovered Areas . | . . . Known Exits Taken . | . . . Unknown Exits Taken 2 | 1 1 . Scrap Searched . | . . . Spaces Dug . | . . . Terrain Destroyed . | . . . Melee . | . . . Projectile . | . . . AOE . | . . . Terrain Rammed . | . . . Walls Destroyed . | . . . Machines Disabled . | . . . Actions | -11 -10 -10 --------- Run | Yrd Mat Sub Total 1076 | 139 864 73 Wait 31 | 1 14 16 Move 884 | 113 733 38 Hop . | . . . Pick Up 24 | 4 20 . Fast Attach 12 | 6 6 . Attach 5 | 1 1 3 Detach 2 | . 2 . Swap 8 | . 4 4 Drop 5 | . 5 . Fire 102 | 14 76 12 Melee . | . . . Ram . | . . . Kick . | . . . Crush 3 | . 3 . Escape Stasis . | . . . Rewire . | . . . Trap . | . . . Miscellaneous . | . . . Route ------- -11/Scrapyard -10/Materials (discovered 6 exits: [*Mat x3] / [*Min x2] / [*Sub]) -10/Subcaves History --------- Turn | Location | Event 47 | -11/Scrapyard | Discovered new exit (range 16) 231 | -11/Scrapyard | Entered Materials 271 | -10/Materials | Discovered new exit (range 15) 308 | -10/Materials | Build established: Mutant 521 | -10/Materials | Discovered new exit (range 8) 827 | -10/Materials | Discovered new exit (range 11) 960 | -10/Materials | Core integrity fell below 50% 1134 | -10/Materials | Discovered new exit (range 11) 1266 | -10/Materials | Build established: Scavenger-Mutant 1319 | -10/Materials | Discovered new exit (range 8) 1955 | -10/Materials | Discovered new exit (range 7) 2481 | -10/Materials | Entered Subcaves 2600 | -10/Subcaves | A Subdweller sparked back to life 2600 | -10/Subcaves | A Subdweller sparked back to life 2600 | -10/Subcaves | A Subdweller sparked back to life 2623 | -10/Subcaves | Core integrity fell below 20% 2659 | -10/Subcaves | Destroyed by FS-JUD(R) with Subdweller Machine Gun Last Messages --------------- 02455_ K-01 Serf cleans the Terminal. LOCATION=UNKNOWN AMBIENT_HEAT=-10 GOAL=ESCAPE 02552_ S7-GAU(O) collects matter. 02562_ S7-GAU(O) puts together Spk. Treads. 02600_ 00-1H6(R) creaks and sparks as it begins to move. 02600_ FS-JUD(R) creaks and sparks as it begins to move. 02600_ HX-J3R(R) creaks and sparks as it begins to move. 02612_ HX-J3R(R) destroyed. 02620_ Subatomizers dissect the Sub. Monowheel. 02622_ Ion Engine destroyed. 02624_ Lgt. Assault Rifle destroyed. 02628_ Sub. Optics melted. 02628_ 00-1H6(R) destroyed. 02631_ Subatomizers dissect the Sub. Monowheel. 02634_ Lgt. Assault Rifle destroyed. 02643_ S7-GAU(O) collects matter. 02657_ FS-JUD(R) affixes Scrap Shield Fragment to Scrap Shield. 02658_ S7-GAU(O) puts together Sub. Power Source. Map ----- +----------------------------------------------------+ | ?????????????? ?????????????????????????????????? | | ?????????????? ?????????????????????????????????? | | ?????????????? ?????????????????????????????????? | | ?????????????? #????????????????????????????????? | | ??????????????? ##??????????????????????????????? | | ??????????????? #??????????????????????????????? | | ?????????????? #??????????????????????????????? | | ???????????? #??????????????????????????????? | | # ???????????# #??????????????????????????????? | | ? ?????###??# ##?????????????????????????????? | | ??# ???## #??# ##????????????????????????????? | | ???# ### #### ##???????????????????????????? | | ??## #???????????????????????????? | | ### #????????????????????????????? | | ## # #????????????????????????????? | | ## ## #????????????????##??????????? | | ### #??????????????# ??????????? | | #?### ##????????????## ???????????? | | # #????######???????? ????????????? | | # ####?# ##?????? ?????????????? | | # ## ##?# ##????? #??????????????? | | # ??# ### # #???? #??????????????? | | ##???### #?### #???????????????? | | ???????# #?# "" ##??????????????? | | ???????## ### ###& &#??????????????? | | ????????## # # @## ##?????????????? | | ?????????# ### =R " " #?????????????? | | ???????? #?# ==O " #?????????????? | | ?????? # #### #### #????????????? | | ????? ## ###??# ##???#####????????????? | | ???? #?# #???# #?????????????????????? | | ??? ?? ???## #?????????????????????? | | ??? ?? ????## ##?????????????????????? | | ??? ??? ## ##????###??????????????????????? | | ??????? ?# ##??????????????????????????????? | | ??????? #?# ##????????????????????????????????? | | ?????????????##??????????????????????????????????? | | ?????????????????????????????????????????????????? | | ?????????????????????????????????????????????????? | | ?????????????????????????????????????????????????? | | ?????????????????????????????????????????????????? | | ?????????????????????????????????????????????????? | | ?????????????????????????????????????????????????? | | ?????????????????????????????????????????????????? | | ?????????????????????????????????????????????????? | | ?????????????????????????????????????????????????? | | ?????????????????????????????????????????????????? | | ?????????????????????????????????????????????????? | | ?????????????????????????????????????????????????? | | ?????????????????????????????????????????????????? | +----------------------------------------------------+ Best States ------------- Heat Dissipation 39 Energy Generation 10 Energy Capacity 250 Matter Stores 300 Matter Capacity 300 Sight Range 16 Terrain Scan Density 10 Evasion (%) 40 Recoil Reduction 2 Item Schematics ----------------- None Robot Schematics ------------------ None Fabricated ------------ Nothing Alien Tech Used ----------------- None Achievements -------------- None Challenges ------------ None Game ------ Seed TimingAblativeMatter Manual? 0 Play Time 00:10:45 Cumulative 70.4 hours Start 2024.04.10 @ 22:29:37 End 2024.04.10 @ 23:10:39 Sessions 1 Manual Loads 0 Difficulty Rogue Special Mode None Game No. 73 Rogue 73 Adventurer 0 Explorer 0 Win Type - Total 1 Types 1/0/0/0/0/0/0/0/0 Lore% 33 Gallery% 46 Achievement% 41 Wizard Run 0 Options --------- Layout 0 ASCII 0 Keyboard 1 Movement Numpad Keybinds 0 Fullscreen 2 Font 24/Smallcaps Map View 76x50 Zoom Use 0% Tactical HUD 1 Map Filters NONE Filters NONE Steam 1 RUN: b570e679-bc90-4aac-84c0-179ba9b21596